Cogmind - Beta 9.6 @@@ ROGUE MODE // 2020.06.04 @ 22:21:44 Player: OccultOnion Result: Destroyed by G-47 Trooper with Particle Gun Performance ------------- Evolutions (1) 500 Regions Visited (3) 600 Robots Destroyed (42) 210 Value Destroyed (1167) 1167 Prototype IDs (2) 40 Alien Tech Used (0) 0 Bonus (11) 11 TOTAL SCORE: 2528 Bonus ------- High Alert Combat Kills 11 Cogmind --------- Core Integrity 0/400 Matter 112/300 Energy 63/100 System Corruption 2% Temperature Cool (9) Movement Treading (160) Location -9/Storage Parts ------- > --- POWER (1) -------- (None) > --- PROPULSION (3) --- Light Treads Light Treads Wheel > --- UTILITY (3) ------ Small Storage Unit Medium Storage Unit Improved Sensor Array > --- WEAPON (2) ------- (None) > --- INVENTORY (10) --- Improved Ion Engine Hover Unit Heat Sink Heat Sink Signal Interpreter Improved Targeting Computer Improved Targeting Computer Light Armor Plating Peak State ------------ > --- POWER ------------ Ion Engine > --- PROPULSION ------- Aluminum Leg Aluminum Leg Aluminum Leg > --- UTILITY ---------- Small Storage Unit Medium Storage Unit Improved Sensor Array > --- WEAPON ----------- Heavy Assault Rifle Precision Rocket Launcher > --- INVENTORY -------- Ion Engine Heat Sink Signal Interpreter Improved Targeting Computer Improved Targeting Computer Beam Rifle Beam Rifle [Rating: 17] Favorites ----------- Power Ion Engine Engine Ion Engine Propulsion Aluminum Leg Treads Light Treads Leg Aluminum Leg Wheel Compact Wheel Flight Unit VTOL Module Utility Small Storage Unit Device Improved Sensor Array Storage Small Storage Unit Protection Propulsion Shielding Weapon Light Assault Rifle Energy Gun Small Laser Ballistic Gun Light Assault Rifle Launcher Precision Rocket Launcher Build | -11 -10 -9 -9 ------- Run | Scr Mat Mat Sto Slots Evolved 2 | . . 2 . Power . | . . . . Propulsion 1 | . . 1 . Utility 1 | . . 1 . Weapon . | . . . . Parts Attached 27 | . 4 11 12 Power 4 | . 1 2 1 Engine 4 | . 1 2 1 Core . | . . . . Reactor . | . . . . Propulsion 11 | . . 5 6 Treads 5 | . . 2 3 Leg 3 | . . 2 1 Wheel 2 | . . 1 1 Hover . | . . . . Flight 1 | . . . 1 Utility 3 | . 1 1 1 Device 1 | . . . 1 Storage 1 | . 1 . . Processor . | . . . . Hackware . | . . . . Protection 1 | . . 1 . Artifact . | . . . . Weapon 9 | . 2 3 4 Energy Gun 4 | . . 2 2 Energy Cannon . | . . . . Ballistic Gun 4 | . 2 1 1 Ballistic Cannon . | . . . . Launcher 1 | . . . 1 Special Weapon . | . . . . Impact Weapon . | . . . . Slashing Weapon . | . . . . Piercing Weapon . | . . . . Special Melee Weapon . | . . . . Unidentified Prototypes 2 | . . . 2 Parts Lost 25 | . 2 11 12 Power 5 | . 1 2 2 Propulsion 9 | . . 4 5 Utility 1 | . . 1 . Weapon 10 | . 1 4 5 Highest Loss Streak 5 | . 1 4 5 Average Slot Usage (%) 86 | . 85 91 82 Engine 9 | . 14 9 7 Treads 7 | . . 15 4 Leg 14 | . 28 7 12 Wheel 3 | . . 6 4 Flight 1 | . . . 2 Device 4 | . . . 11 Storage 20 | . 14 22 22 Protection 3 | . . 9 . Energy Gun 5 | . 6 8 3 Ballistic Gun 11 | . 21 11 6 Launcher 3 | . . . 7 Naked Turns . | . . . . Heaviest Build 29 | 10 17 22 29 Greatest Support 40 | 20 20 40 30 Greatest Overweight (x) 7 | . . 7 6 Average Overweight (x) . | . . 1 1 Largest Inventory Capacity 10 | 6 10 10 10 Average Capacity 9 | 6 6 10 10 Most Carried 10 | 6 7 10 10 Average Carried 7 | 5 5 7 8 Final Capacity 10 | 6 10 10 10 Final Carried 9 | 6 7 9 8 Class Distribution -------------------- 50% | Mutant 49% | Scavenger-Mutant Dominant Class ---------------- Mutant | -10/Materials Scavenger-Mutant | -9/Materials Scavenger-Mutant | -9/Storage Resources | -11 -10 -9 -9 ----------- Run | Scr Mat Mat Sto Matter Collected 668 | 204 110 155 199 Remotely . | . . . . Salvage Created 1472 | 83 456 469 464 Parts 94 | 1 26 33 34 Haulers Intercepted 2 | . 1 . 1 Recyclers Shooed 2 | . 1 . 1 Parts Field Recycled . | . . . . Retrieved Matter . | . . . . Parts Self-Destructed . | . . . . Prevented . | . . . . Kills | -11 -10 -9 -9 ------- Run | Scr Mat Mat Sto Combat Hostiles Destroyed 34 | . 12 11 11 Guns 28 | . 12 11 5 AOE 6 | . . . 6 Classes Destroyed 7 | 1 3 2 1 Worker 2 | . . 1 1 Hauler 2 | . 1 . 1 Recycler 3 | 1 1 . 1 Operator 1 | . . . 1 Swarmer 8 | . 5 3 . Grunt 16 | . 7 5 4 Sentry 10 | . . 3 7 Best Kill Streak 5 | 1 5 4 5 Combat Bots Only 5 | . 5 4 3 Max Kills in Single Turn 2 | 1 1 1 2 Gunslinging . | . . . . Exploded 1 | . . . 1 Melee . | . . . . Uniques/NPCs Destroyed . | . . . . Combat | -11 -10 -9 -9 -------- Run | Scr Mat Mat Sto Damage Taken 2574 | . 469 1121 984 Core 508 | . 96 223 189 Absorbed by Shields . | . . . . Core Remaining (%) 80 | 100 61 . . Volleys Fired 130 | 4 45 43 38 Largest 2 | 2 2 2 2 Hottest 99 | 70 70 63 99 Shots Fired 228 | 8 88 75 57 Gun 211 | 8 88 75 40 Cannon . | . . . . Launcher 17 | . . . 17 Special . | . . . . Kinetic 151 | 4 78 45 24 Thermal 60 | 4 10 30 16 Explosive 17 | . . . 17 Electromagnetic . | . . . . Robot Hit Streak 9 | 3 9 5 9 Robot Miss Streak 3 | 1 2 3 2 Penetration Max . | . . . . Secondary Targets 1 | . . 1 . Max Gunslinging Chain 1 | . . 1 . Shots Hit Robots 153 | 6 62 47 38 Core Hits 83 | 2 28 22 31 Critical Hits 1 | . 1 . . Critical Kills . | . . . . Critical Parts Destroyed 1 | . 1 . . Melee Attacks . | . . . . Impact . | . . . . Slashing . | . . . . Piercing . | . . . . Sneak Attacks . | . . . . Combat Hostiles . | . . . . Follow-up Attacks . | . . . . Damage Inflicted 2419 | 52 497 474 1396 Guns 1440 | 52 497 468 423 Cannons . | . . . . Explosions 973 | . . . 973 Melee . | . . . . Ramming 6 | . . 6 . Kinetic 878 | 14 396 232 236 Thermal 562 | 38 101 236 187 Explosive 973 | . . . 973 Electromagnetic . | . . . . Impact . | . . . . Slashing . | . . . . Piercing . | . . . . Highest Corruption 2 | . . . 2 Average Corruption 2 | . . . 2 Corruption Purged . | . . . . Effects 2 | . . . 2 Message Errors 1 | . . . 1 Targeting Errors 1 | . . . 1 Overload Shots . | . . . . Overflow Damage 99 | . . . 99 Projectiles . | . . . . Explosions 99 | . . . 99 Melee . | . . . . Knockbacks . | . . . . Impact . | . . . . Kinetic . | . . . . Secondary . | . . . . Self-Inflicted Damage 59 | . . 2 57 Shots 2 | . . . 2 Rammed 3 | . . 3 . Targets Rammed 3 | . . 3 . Kicked . | . . . . Crushed . | . . . . Highest Temperature 88 | 60 88 46 69 Average Temperature 20 | 30 21 14 22 Received Heat Transfer 1083 | . 204 531 348 Siege Activations . | . . . . Robots Corrupted . | . . . . Combat Hostiles . | . . . . Parts Fried . | . . . . Impact Corruptions . | . . . . Robots Melted . | . . . . Combat Hostiles . | . . . . Parts Melted 1 | . . . 1 Heat Transferred 1438 | 111 296 550 481 Parts Sabotaged . | . . . . Parts Stolen . | . . . . Parts Stripped . | . . . . Power Chain Reactions . | . . . . Missiles Intercepted . | . . . . Alert | -11 -10 -9 -9 ------- Run | Scr Mat Mat Sto Peak Influence 429 | 5 330 429 351 Average Influence 214 | 3 174 258 207 Maximum Alert Level 2 | . 1 2 1 Low Security (%) 43 | 100 62 24 46 Level 1 51 | . 37 60 53 Level 2 5 | . . 14 . Level 3 . | . . . . Level 4 . | . . . . Level 5 . | . . . . High Security . | . . . . Max Security . | . . . . Squads Dispatched 8 | . 4 2 2 Investigation 4 | . 1 1 2 Extermination . | . . . . Reinforcement 4 | . 3 1 . Assault . | . . . . Garrison . | . . . . Intercept . | . . . . Construction Impeded . | . . . . Haulers Reinforced . | . . . . Stealth | -11 -10 -9 -9 --------- Run | Scr Mat Mat Sto Distress Signals 2 | . 1 1 . Communications Jammed . | . . . . Distress Signals . | . . . . Times Spotted 74 | . 25 28 21 Peak Tracking Total 11 | . 6 11 6 Tactical Retreats 6 | . 2 1 3 Traps | -11 -10 -9 -9 ------- Run | Scr Mat Mat Sto Traps Triggered 5 | . 1 . 4 Indirectly . | . . . . Trap Hack Attempts . | . . . . Triggered . | . . . . Disarmed . | . . . . Reprogrammed . | . . . . Reused . | . . . . Traps Extracted . | . . . . Installed . | . . . . Triggered . | . . . . Machines | -11 -10 -9 -9 ---------- Run | Scr Mat Mat Sto Machines Disabled 4 | . . . 4 Max in Single Turn 2 | . . . 2 Machines Sabotaged . | . . . . Garrisons Compromised . | . . . . Overloaded Fab Kills . | . . . . Fab Network Shutdowns . | . . . . Hacking | -11 -10 -9 -9 --------- Run | Scr Mat Mat Sto Machines Accessed 11 | . 1 2 8 Terminals 10 | . 1 2 7 Fabricators . | . . . . Repair Stations . | . . . . Recycling Units . | . . . . Scanalyzers . | . . . . Garrison Access 1 | . . . 1 Total Hacks 27 | . 3 6 18 Successful 8 | . 2 1 5 Failed 19 | . 1 5 13 Catastrophic 4 | . . 1 3 Database Lockouts . | . . . . Manual 14 | . . 7 7 Terminals 24 | . 3 6 15 Fabricators . | . . . . Repair Stations . | . . . . Recycling Units . | . . . . Scanalyzers . | . . . . Garrison Access 3 | . . . 3 Terminal Hacks 7 | . 2 . 5 Robot Analysis 1 | . 1 . . Alert Level 4 | . 1 . 3 Unreport Threat 1 | . . . 1 Locate Traps 1 | . . . 1 Fabricator Hacks . | . . . . Repair Station Hacks . | . . . . Recycling Unit Hacks . | . . . . Scanalyzer . | . . . . Garrison Access Hacks . | . . . . Unauthorized Hacks 1 | . . 1 . Terminals 1 | . . 1 . Botnet 1 | . . 1 . Fabricators . | . . . . Repair Stations . | . . . . Recycling Units . | . . . . Scanalyzers . | . . . . Garrison Access . | . . . . Data Cores Recovered . | . . . . Used . | . . . . Hacking Detections 11 | . 1 2 8 Full Trace Events 4 | . . 1 3 Feedback Events . | . . . . Feedback Blocked . | . . . . Robot Schematics Acquired . | . . . . Robots Built . | . . . . Matter . | . . . . Time . | . . . . Total Robot Build Rating . | . . . . Part Schematics Acquired . | . . . . Parts Built . | . . . . Matter . | . . . . Time . | . . . . Total Part Build Rating . | . . . . Parts Repaired . | . . . . Time . | . . . . Parts Recycled . | . . . . Recycled Matter . | . . . . Retrieved Matter . | . . . . Retrieved Components . | . . . . Parts Scanalyzed . | . . . . Part Schematics Acquired . | . . . . Parts Damaged . | . . . . Bothacking | -11 -10 -9 -9 ------------ Run | Scr Mat Mat Sto Used RIF Installer . | . . . . Robots Hacked . | . . . . Non-combat . | . . . . Combat . | . . . . Robot Hacks Applied . | . . . . Relay Couplers Released . | . . . . Robots Rewired . | . . . . Allies Hacked . | . . . . Hacks Repelled . | . . . . Allies | -11 -10 -9 -9 -------- Run | Scr Mat Mat Sto Total Allies . | . . . . Largest Group . | . . . . Highest-Rated Group . | . . . . Highest-Rated Ally . | . . . . Total Orders . | . . . . Ally Attacks . | . . . . Total Damage . | . . . . Kills . | . . . . Allies Corrupted . | . . . . Allies Melted . | . . . . Intel | -11 -10 -9 -9 ------- Run | Scr Mat Mat Sto Robot Analysis Total 1 | . 1 . . Derelict Logs Recovered . | . . . . Drone Launches . | . . . . Drone Recoveries . | . . . . Exploration | -11 -10 -9 -9 ------------- Run | Scr Mat Mat Sto Turns Passed 1580 | 30 333 544 673 Spaces Moved 870 | 15 166 258 431 Core 15 | . . 4 11 Treads 62 | . . 35 27 Legs 470 | 15 166 83 206 Wheels 323 | . . 136 187 Hover . | . . . . Flight . | . . . . Fastest Speed 90 | 120 120 100 90 Average Speed 129 | 120 120 139 127 Slowest Speed 400 | 120 120 400 350 Overloaded Moves . | . . . . Propulsion Burnouts . | . . . . Robots Hopped . | . . . . Cave-ins Triggered . | . . . . Exploration Rate (%) 37 | 2 43 29 75 Regions Visited 3 Branch Regions 1 Pre-discovered Areas . | . . . . Known Exits Taken . | . . . . Unknown Exits Taken 3 | 1 1 1 . Scrap Searched . | . . . . Spaces Dug . | . . . . Terrain Destroyed 257 | . . . 257 Melee . | . . . . Projectile . | . . . . AOE 257 | . . . 257 Actions | -11 -10 -9 -9 --------- Run | Scr Mat Mat Sto Total 1114 | 20 227 372 495 Wait 54 | . 7 44 3 Move 867 | 14 165 257 431 Hop . | . . . . Pick Up 30 | 1 5 13 11 Fast Attach . | . . . . Attach 25 | . 3 10 12 Detach . | . . . . Swap 2 | . 1 1 . Drop 3 | 1 1 1 . Fire 130 | 4 45 43 38 Melee . | . . . . Ram 1 | . . 1 . Kick 1 | . . 1 . Crush 1 | . . 1 . Escape Stasis . | . . . . Rewire . | . . . . Trap . | . . . . Miscellaneous . | . . . . Route ------- -11/Scrapyard -10/Materials -9/Materials -9/Storage History --------- Turn | Location | Event 13 | -11/Scrapyard | Discovered new exit (range 3) 31 | -11/Scrapyard | Entered Materials 318 | -10/Materials | Build established: Mutant 351 | -10/Materials | Discovered new exit (range 12) 364 | -10/Materials | Entered another Materials area 364 | -9/Materials | Evolved 2 slots: Propulsion x1, Utility x1 474 | -9/Materials | Discovered new exit (range 16) 583 | -9/Materials | Lost 4 parts (1p1n2w) 885 | -9/Materials | Core integrity fell below 50% 908 | -9/Materials | Entered Storage 993 | -9/Storage | Build established: Scavenger-Mutant 1412 | -9/Storage | Core integrity fell below 20% 1581 | -9/Storage | Destroyed by G-47 Trooper with Particle Gun Last Messages --------------- 01520_ K-01 Serf cleans the Component Storage. 01523_ O-16 Technician: "IFF HANDSHAKE FAILED. SECURING TERMINAL." 01528_ O-16 Technician destroyed. 01530_ K-01 Serf collects debris. 01534_ Acquired Hover Unit. 01537_ K-01 Serf collects debris. 01561_ G-34 Mercenary destroyed. 01565_ K-01 Serf collects debris. 01565_ Connecting with Terminal... >>Alert(Check) Current Alert Level: Low Security 01565_ ALERT: Suspicious activity at Terminal S006. Dispatching Investigation squad. 01567_ Beam Rifle destroyed. 01567_ R-06 Scavenger collects Ion Engine. 01568_ K-01 Serf collects debris. 01571_ VTOL Module destroyed. 01577_ Imp. Assault Rifle destroyed. 01577_ Ion Engine destroyed. 01579_ Lgt. Treads destroyed. Map ----- +----------------------------------------------------+ | #??????????????????????????????????????? | | #??????????????????????????????????????? | | #??????????????????????????????????????? | | ##### #??????????????????????????????????????? | | ???# #??????????????????????????????????????? | | ???# #????????????? "??????????????????????? | | ??# #????????????? ????????????????????? | | ??# #????????????? ??????????????????? | | ?# ###??????????? ??????????????????? | | ?# # ########???? ??????????????????? | | ##### # #???" #?????????????????? | | # # """"" #???" #?????????????????? | | |!! # # """"" #???" !!! ??????????????????? | | |!! # # """"" #???T !!! #?????????????????? | | |!! + + #???" !!! #?????????????????? | | # # """"" #???" #?????????????????? | | # # """"" #???"? ? #?????????????????? | | # # """"" #???# ?"Y" #?????????????????? | | # # #???# """ #?????????????????? | | ##### ###+######???# #?????????????????? | | ????#####?# #????????# +?????????????????? | | ?????###### ########## ####?????????????????? | | ?????# ? #????????????????????? | | ?????# ? /% ? #????????????????????? | | ?????# """ ###/######??????????????????? | | ?????# """ #?# g@ #??????????????????? | | ?????# """ " " #?#"""g ##?????????????????? | | ?????# """ "T" #?#""" T#?????????????????? | | ?????# """ """ #?#""" ##?????????????????? | | ?????# ### #??????????????????? | | ?????# Y g #??????????????????? | | ??? #####+##### #####??????????????????? | | ???? ??????????###??????????????????????? | | ?????##+####???????????????????????????????????? | | ???????????????????????????????????????????????? | | ???????????????????????????????????????????????? | | ???????????????????????????????????????????????? | | ???????????????????????????????????????????????? | | ???????????????????????????????????????????????? | | ???????????????????????????????????????????????? | | ???????????????????????????????????????????????? | | ???????????????????????????????????????????????? | | ???????????????????????????#######?????????????? | | ??????###?????????????????## ####??????????? | | ??##### ####???????????#### # # #??????????? | | ??# ###########?# ###?????????? | | ??# """ # #?# ##????????? | | ??# "T" # #?# [ # #????????? | | ??# # #?# %* ##???????? | | ??#""" # #?# " # #???????? | +----------------------------------------------------+ Best States ------------- Heat Dissipation 28 Energy Generation 10 Energy Capacity 250 Matter Stores 300 Matter Capacity 300 Sight Range 16 Robot Scan Range 13 Terrain Scan Density 10 Propulsion Shielding 33 Evasion (%) 42 Recoil Reduction 2 Item Schematics ----------------- None Robot Schematics ------------------ None Fabricated ------------ Nothing Alien Tech Used ----------------- None Achievements -------------- None Challenges ------------ None Game ------ Seed CatalystReclamationConverter Manual? 0 Play Time 00:22:09 Cumulative 58.2 hours Start 2020.06.04 @ 22:05:25 End 2020.06.04 @ 22:21:44 Sessions 1 Manual Loads 0 Difficulty Rogue Special Mode None Game No. 138 Rogue 138 Adventurer 0 Explorer 0 Win Type - Total 0 Types 0/0/0/0/0/0/0 Lore% 30 Gallery% 50 Achievement% 32 Wizard Run 0 Options --------- ASCII 0 Keyboard 1 Movement Numpad Keybinds 0 Fullscreen 2 Font 18/SmallcapsGlow Map View 76x50 Tactical HUD 1 Map Filters NONE Filters NONE Steam 1 RUN: 79171e35-2b36-4bea-ada2-8f07fde57c6d